bitfinex/quotes_ETHUSD_20260113
["timestamp","ask_amount","ask_price","bid_price","bid_amount"]
[1768342626344,9.36782371,3301.2,3296.5,3.03347889]
[1768342626545,0.16,3300.1,3296.6,0.313]
[1768342626748,0.0938955,3299.4,3296.0,0.001]
[1768342626960,0.16,3298.7,3296.0,0.001]
[1768342627173,0.50673409,3298.2,3295.2,3.03462825]
[1768342627349,0.57417959,3298.1,3295.1,0.313]
[1768342627548,0.28117959,3298.0,3295.4,3.03451554]
[1768342627716,0.28117959,3297.9,3295.2,0.03034717]
[1768342628047,0.60325183,3299.5,3295.1,0.313]
[1768342628048,0.293,3300.2,3296.2,9.11537876]
[1768342628254,0.06027623,3299.7,3296.4,9.11537876]
[1768342628478,0.06027623,3299.7,3296.6,9.11537876]
[1768342628795,0.16,3299.5,3296.1,6.06777072]
[1768342629086,0.06027623,3299.7,3296.4,9.11537876]
[1768342629381,0.06027623,3299.7,3296.9,0.001]
[1768342630285,0.16,3299.5,3296.9,0.001]
[1768342630580,0.16,3299.3,3296.9,0.001]
[1768342630881,9.6466835,3299.1,3296.9,0.001]
[1768342631086,9.4866835,3298.9,3295.3,0.313]
[1768342631590,0.293,3298.8,3295.4,0.03034532]
[1768342631748,9.4866835,3298.9,3295.3,0.313]
[1768342631953,0.293,3298.7,3295.4,0.03034532]
[1768342632163,0.16,3299.7,3295.3,0.313]
[1768342632483,9.6466835,3299.5,3295.4,0.34334532]
[1768342632696,9.6466835,3299.5,3295.5,0.313]
[1768342632987,3.03103782,3299.2,3295.6,9.10304646]
[1768342633494,0.43746536,3299.1,3295.6,6.06869764]
[1768342633660,0.16,3299.0,3295.6,6.06869764]
[1768342634156,9.4866835,3298.6,3295.5,3.0344228]
[1768342634500,0.293,3298.5,3295.5,3.0344228]
[1768342634666,0.43746536,3298.9,3295.5,12.1377455]
[1768342634998,6.22134076,3299.6,3295.5,9.1033046]
[1768342635165,9.4866835,3299.7,3295.6,0.03034348]
[1768342635364,15.54600424,3300.7,3295.9,10.63123194]
[1768342635567,0.294,3300.6,3296.1,10.65590099]
[1768342635762,0.49774159,3300.5,3296.3,10.67332454]
[1768342635971,0.294,3300.4,3296.4,23.64571488]
[1768342636199,0.43746536,3300.4,3296.4,31.68284673]
[1768342636410,0.06027623,3300.5,3297.6,9.11537876]
[1768342636598,0.06027623,3300.5,3297.7,9.42937876]
[1768342636777,0.06027623,3300.5,3297.8,16.06163314]
[1768342636984,0.06027623,3300.5,3298.4,1.57226641]
[1768342637309,0.002,3301.4,3298.6,9.23532515]
[1768342637808,0.294,3301.3,3298.1,9.09614625]
[1768342638110,0.294,3301.3,3295.2,3.41550395]
[1768342638111,10.42934743,3301.2,3298.0,3.03214069]
[1768342638263,9.67939134,3300.8,3297.8,0.314]
[1768342638468,1.16830257,3300.7,3297.8,0.314]
[1768342638770,0.294,3300.8,3298.0,3.03211326]
[1768342638998,0.294,3300.8,3297.9,6.06446526]
[1768342639204,0.87430257,3300.7,3297.9,6.06446526]
[1768342639383,0.87430257,3300.7,3298.0,0.109011]
[1768342639708,0.294,3300.6,3298.0,0.109011]
[1768342639870,1.44853838,3300.5,3298.0,0.109011]
[1768342640067,0.28023581,3300.4,3298.0,0.109011]
[1768342640277,1.44853838,3300.3,3298.0,0.109011]
[1768342640485,0.28023581,3300.2,3298.0,0.109011]
[1768342640909,6.55683808,3300.8,3298.0,0.109011]
[1768342640910,0.28023581,3300.1,3298.0,0.109011]
[1768342641116,0.28023581,3300.0,3298.0,0.109011]
[1768342641421,0.28023581,3299.9,3298.0,0.109011]
[1768342641713,0.28023581,3299.8,3298.0,0.109011]
[1768342642002,0.20368044,3300.8,3298.0,6.17328896]
[1768342642166,0.28022769,3300.7,3298.0,6.17328896]
[1768342642372,0.28022769,3300.6,3298.1,0.313]
[1768342642572,0.28022769,3300.5,3298.1,0.313]
[1768342642817,1.15453026,3300.5,3298.2,0.313]
[1768342642973,6.2628217,3300.8,3298.2,0.313]
[1768342642974,0.28022769,3300.4,3298.2,0.313]
[1768342643169,3.23325107,3300.8,3298.2,0.313]
[1768342643170,0.28022769,3300.3,3298.2,0.313]
[1768342643399,0.28022769,3300.2,3298.2,0.313]
[1768342643604,1.07798301,3300.8,3298.2,0.313]
[1768342643605,0.20368044,3300.8,3298.2,3.34491027]
[1768342643899,0.28024649,3300.7,3298.2,9.40882391]
[1768342644102,0.20368044,3300.8,3298.2,12.44078073]
[1768342644415,0.20368044,3300.8,3298.2,21.67610588]
[1768342644615,0.20368044,3300.8,3298.3,9.23532515]
[1768342644786,0.20368044,3300.8,3298.5,9.23532515]
[1768342644988,0.20368044,3300.8,3298.7,9.23532515]
[1768342645293,0.002,3301.7,3299.1,9.23532515]
[1768342645492,0.002,3301.7,3299.5,9.23532515]
[1768342645703,0.003,3302.7,3299.7,9.23532515]
[1768342646087,0.003,3302.7,3300.1,9.23532515]
[1768342646284,0.003,3302.7,3300.3,9.23532515]
[1768342647207,0.003,3302.7,3300.5,9.23532515]
[1768342647409,0.003,3302.7,3300.6,9.54932515]
[1768342647706,0.003,3302.7,3300.4,15.1496788]
[1768342647707,0.003,3302.7,3300.4,6.05987152]
[1768342647925,0.003,3302.7,3300.5,0.314]
[1768342648482,0.003,3302.7,3300.6,0.314]
[1768342649120,0.003,3302.7,3300.7,9.08898111]
[1768342649328,0.003,3302.7,3300.7,3.02966037]
[1768342649488,0.003,3302.7,3300.4,3.02992055]
[1768342649689,0.003,3302.7,3300.6,3.0296968]
[1768342649918,0.003,3302.7,3300.6,6.05944896]
[1768342650083,0.003,3302.7,3300.6,3.0296968]
[1768342650281,0.003,3302.7,3300.6,9.08920112]
[1768342650515,0.003,3302.7,3300.6,12.11895328]
[1768342651031,0.003,3302.7,3300.6,6.05944896]
[1768342651331,0.20499759,3303.8,3301.0,9.23532515]
[1768342651544,0.20499759,3303.8,3301.1,0.315]
[1768342651744,0.20499759,3303.8,3301.1,9.55032515]
[1768342651908,0.20499759,3303.8,3301.3,9.23532515]
[1768342652113,0.002,3304.4,3301.5,9.23532515]
[1768342652426,0.002,3304.4,3301.6,1.86704448]
[1768342652639,0.002,3304.4,3301.8,9.23532515]
[1768342652809,0.002,3304.4,3302.0,9.23532515]
[1768342653208,0.002,3304.4,3302.1,0.315]
[1768342653409,0.002,3304.4,3302.2,9.55032515]
[1768342653607,0.002,3304.4,3301.6,14.5]
[1768342653608,6.20444672,3306.3,3302.6,9.23532515]
[1768342653818,0.27795503,3306.2,3302.6,9.23532515]
[1768342654023,3.02452892,3306.3,3302.6,9.23532515]
[1768342654225,6.04906013,3306.3,3302.6,9.23532515]
[1768342654394,3.02452892,3306.3,3302.6,9.23532515]
[1768342654598,6.04906013,3306.3,3302.7,0.315]
[1768342654817,0.27750299,3306.2,3302.7,0.315]
[1768342655004,6.04906013,3306.3,3302.7,0.315]
[1768342655219,15.30247988,3306.1,3301.6,23.57552093]
[1768342655411,0.43726548,3306.0,3302.7,6.05562316]
[1768342655607,6.04814322,3306.8,3302.8,9.39152093]
[1768342655806,0.27718707,3306.7,3302.8,9.39152093]
[1768342656044,3.2285005,3306.9,3303.2,9.07552093]
[1768342656045,0.20443274,3306.9,3303.2,9.07552093]
[1768342656256,0.20443274,3306.9,3303.1,11.26760097]
[1768342656257,0.20443274,3306.9,3303.6,9.07552093]
[1768342656399,0.15527015,3308.6,3305.2,9.07552093]
[1768342656599,0.27656447,3308.5,3305.3,0.316]
[1768342656856,0.2185099,3308.7,3303.9,9.23552093]
[1768342656857,0.2185099,3308.7,3305.4,9.39152093]
[1768342657031,0.2185099,3308.7,3305.6,9.07552093]
[1768342657344,0.2185099,3308.7,3306.0,9.07552093]
[1768342657500,0.2185099,3308.7,3306.1,0.316]
[1768342657698,3.24084732,3308.7,3306.1,0.316]
[1768342658103,6.26318474,3308.7,3306.1,0.316]
[1768342658537,0.16,3308.6,3306.1,0.316]
[1768342658741,0.16,3308.6,3303.7,9.07552093]
[1768342658742,1.7165311,3308.3,3303.7,9.07552093]
[1768342658908,0.16,3308.3,3304.7,3.02597751]
[1768342659104,3.0229746,3308.0,3304.8,0.315]
[1768342659503,12.56367687,3308.4,3304.8,6.36674924]
[1768342659730,9.2530561,3308.4,3304.8,9.39265095]
[1768342659931,0.2185099,3308.7,3304.8,12.41855266]
[1768342660130,0.2185099,3308.7,3304.8,21.49407359]
[1768342660311,3.24085174,3308.7,3304.9,9.07552093]
[1768342660511,3.24093445,3308.7,3304.9,9.07552093]
[1768342660912,0.2185099,3308.7,3305.0,36.26693093]
[1768342661138,0.2185099,3308.7,3305.3,9.07633194]
[1768342661348,0.2185099,3308.7,3305.5,9.07552093]
[1768342661653,0.2185099,3308.7,3306.0,10.63233291]
[1768342661952,0.2185099,3308.7,3306.1,9.07552093]
[1768342662254,0.2185099,3308.7,3306.2,9.39152093]
[1768342662457,0.2185099,3308.7,3306.3,9.07552093]
[1768342662949,0.2185099,3308.7,3306.4,9.39152093]
[1768342663130,0.2185099,3308.7,3306.5,6.04869196]
[1768342663340,1e-08,3308.7,3306.5,9.07303794]
[1768342663944,1e-08,3308.7,3306.7,2.921206]
[1768342664104,1e-08,3308.7,3306.8,9.07552093]
[1768342664305,1e-08,3308.7,3307.0,1.54224014]
[1768342664509,1e-08,3308.7,3307.1,1.86611368]
[1768342664731,1e-08,3308.7,3307.1,0.316]
[1768342665205,1e-08,3308.7,3307.2,6.0474117]
[1768342666016,1e-08,3308.7,3307.1,0.316]
[1768342666017,1e-08,3308.7,3307.1,3.33977987]
[1768342666454,1e-08,3308.7,3307.1,0.316]
[1768342666640,1e-08,3308.7,3307.1,3.33978615]
[1768342667445,0.002,3309.5,3307.1,9.38739184]
[1768342667630,0.002,3309.5,3307.2,9.07552093]
[1768342667955,0.002,3309.5,3307.4,1.56532169]
[1768342668124,0.002,3308.4,3307.3,14.5]
[1768342668320,0.002,3309.5,3307.3,14.5]
[1768342668321,0.002,3308.7,3307.3,14.5]
[1768342668653,0.002,3308.7,3307.1,6.36359456]
[1768342668654,0.002,3308.7,3307.1,9.38739184]
[1768342668854,0.002,3309.5,3307.2,2.111217]
[1768342669039,0.002,3309.5,3307.2,14.5]
[1768342669245,0.002,3309.5,3307.3,6.04722884]
[1768342669441,0.002,3309.5,3307.4,0.03023523]
[1768342669660,0.002,3309.5,3307.4,9.10575616]
[1768342669831,0.002,3309.5,3307.3,9.07084326]
[1768342670036,0.002,3309.5,3307.4,14.5]
[1768342670218,0.002,3309.5,3307.1,0.316]
[1768342670421,9.2550561,3309.5,3307.1,0.316]
[1768342670622,9.2530561,3309.4,3307.1,0.316]
[1768342671564,9.2530561,3309.4,3307.2,0.03023705]
[1768342671755,0.002,3309.5,3307.2,0.03023705]
[1768342671957,0.002,3309.5,3307.1,6.36358044]
[1768342672360,0.002,3309.5,3307.2,0.03023705]
[1768342672753,0.002,3309.5,3307.1,9.38737772]
[1768342672927,0.002,3309.5,3307.2,2.774198]
[1768342673126,0.002,3309.5,3307.3,14.5]
[1768342673329,0.002,3309.5,3307.4,6.07728123]
[1768342673536,0.002,3309.5,3307.4,9.070569]
[1768342673736,0.002,3309.5,3307.4,6.047046]
[1768342674171,0.002,3309.5,3307.4,3.023523]
[1768342674366,0.002,3309.5,3307.4,6.047046]
[1768342674541,0.002,3309.5,3307.4,3.023523]
[1768342674942,0.002,3309.5,3307.4,6.047046]
[1768342675347,0.002,3309.5,3307.2,6.04734387]
[1768342675559,0.002,3310.1,3307.7,9.07552093]
[1768342675749,0.002,3310.1,3308.3,9.07552093]
[1768342675943,0.002,3310.1,3308.6,9.07552093]
[1768342676179,0.002,3310.1,3308.6,23.57552093]
[1768342676469,0.002,3310.1,3308.4,0.317]
[1768342676673,0.002,3310.1,3308.5,0.03022517]
[1768342676980,0.002,3310.1,3308.5,0.317]
[1768342677350,0.002,3310.1,3308.7,6.0446701]
[1768342678041,0.002,3310.1,3308.7,3.02233505]
[1768342678241,0.002,3310.1,3308.7,6.0446701]
[1768342678477,0.002,3310.1,3308.8,0.03022243]
[1768342679351,0.002,3310.1,3308.9,9.06645711]
[1768342679986,0.002,3310.1,3309.0,14.5]
[1768342680204,0.002,3310.7,3309.1,0.318]
[1768342681070,0.002,3310.7,3309.1,0.34821969]
[1768342681472,0.002,3311.2,3309.3,9.07552093]
[1768342681769,9.2550561,3311.0,3307.3,3.02360718]
[1768342681972,9.2530561,3310.3,3305.7,3.02506883]
[1768342682173,12.4300561,3309.6,3307.0,0.318]
[1768342682375,0.71972138,3310.2,3307.0,0.16270136]
[1768342682376,9.53077748,3309.5,3307.0,0.16270136]
[1768342682671,12.4300561,3309.5,3305.8,3.02496246]
[1768342682847,12.4300561,3309.1,3306.1,3.02469957]
[1768342683051,0.2783439,3309.0,3306.1,3.02469957]
[1768342683267,0.2783439,3309.0,3306.1,9.07412335]
[1768342683578,3.02105676,3310.1,3306.2,0.0302462]
[1768342683869,0.27882399,3310.0,3306.2,1.52913723]
[1768342684168,0.27882399,3309.9,3306.1,3.02469957]
[1768342684374,0.27882399,3309.8,3306.4,8.461917]
[1768342684539,0.27882399,3309.7,3306.5,0.03024345]
[1768342684767,0.27882399,3309.6,3306.6,0.318]
[1768342684964,0.27882399,3309.5,3306.0,6.04960676]
[1768342685160,0.27882399,3309.5,3306.1,0.318]
[1768342685366,0.27882399,3309.5,3306.2,9.10410743]
[1768342685578,3.30042863,3309.5,3306.2,9.07386123]
[1768342685775,0.27882399,3309.4,3306.2,9.07386123]
[1768342686184,0.27882399,3309.4,3306.2,6.04924082]
[1768342686381,0.43882399,3309.4,3306.2,6.04924082]
[1768342686583,9.25884101,3309.0,3306.2,6.04924082]
[1768342686899,9.25884101,3308.7,3306.1,0.318]
[1768342687206,9.537665,3308.6,3306.2,0.0302462]
[1768342687372,0.27882399,3308.5,3306.3,9.07358676]
[1768342687565,0.27882399,3308.4,3306.2,3.0246081]
[1768342687881,0.27882399,3308.3,3306.3,0.318]
[1768342688082,0.27882399,3308.2,3306.3,0.318]
[1768342688401,0.27882399,3308.1,3306.3,0.318]
[1768342688606,0.27882399,3308.0,3306.3,0.318]
[1768342688774,9.25884101,3308.8,3306.3,0.318]
[1768342688970,0.28024968,3308.7,3306.3,0.318]
[1768342689171,0.28024968,3308.6,3306.4,0.03024437]
[1768342689411,9.25884101,3309.8,3306.7,3.729525]
[1768342689618,0.002,3311.0,3306.6,15.1212726]
[1768342689619,0.28039029,3309.7,3306.6,12.09701808]
[1768342689901,0.28039029,3309.6,3306.8,0.319]
[1768342690108,0.28039029,3309.5,3306.8,0.319]
[1768342690277,0.28039029,3309.4,3306.8,0.319]
[1768342690606,0.28039029,3309.3,3306.8,0.319]
[1768342690804,0.28039029,3309.2,3306.6,23.57276356]
[1768342691012,0.28039029,3309.1,3306.9,0.319]
[1768342691307,0.28039029,3309.0,3306.9,0.319]
[1768342691604,0.283,3310.5,3306.9,0.319]
[1768342691605,0.28039029,3308.9,3306.9,6.36693993]
[1768342691814,0.28039029,3308.8,3306.9,0.319]
[1768342692015,9.5392313,3308.7,3305.5,3.02523669]
[1768342692173,0.28039029,3308.6,3306.3,3.02444412]
[1768342692421,0.28039029,3308.6,3306.4,0.319]
[1768342692768,9.5392313,3308.6,3306.5,0.319]
[1768342692917,0.28039029,3308.5,3306.5,0.319]
[1768342693567,0.28039029,3308.5,3306.5,3.34332934]
[1768342693725,0.28039029,3308.5,3306.5,0.319]
[1768342693921,9.25884101,3308.4,3306.5,0.319]
[1768342694122,9.5392313,3308.3,3306.5,0.319]
[1768342694318,9.5392313,3308.2,3306.5,0.319]
[1768342694519,0.28039029,3308.1,3306.5,0.319]
[1768342694944,0.28039029,3308.1,3306.5,3.34332224]
[1768342695420,0.002,3309.3,3306.6,0.03024254]
[1768342695624,0.28037052,3309.2,3306.5,9.3920142]
[1768342695832,0.28037052,3309.1,3306.5,6.36766822]
[1768342696058,0.28037052,3309.0,3306.5,9.3920142]
[1768342696389,0.28037052,3308.9,3306.5,9.3920142]
[1768342696554,3.02380891,3309.3,3306.5,6.36766822]
[1768342696555,0.28037052,3308.8,3306.5,6.36766822]
[1768342696752,0.28037052,3308.7,3306.5,6.36766822]
[1768342696927,0.28037052,3308.6,3306.5,3.3433125]
[1768342697130,0.28037052,3308.5,3306.5,3.3433125]
[1768342697338,0.28037052,3308.4,3306.5,0.319]
[1768342697544,0.28037052,3308.3,3306.5,0.319]
[1768342697867,0.28037052,3308.2,3306.5,0.319]
[1768342698032,0.28037052,3308.1,3306.5,3.34333464]
[1768342698235,0.28037052,3308.0,3306.5,0.319]
[1768342698592,9.272539,3309.1,3306.5,3.02432597]
[1768342698797,9.272539,3308.9,3304.4,0.16]
[1768342699071,0.28031557,3309.0,3305.0,3.02570405]
[1768342699072,9.272539,3307.5,3305.0,3.02570405]
[1768342699275,0.28031557,3307.4,3305.1,0.319]
[1768342699486,12.449539,3307.0,3305.1,0.319]
[1768342699636,0.28031557,3306.9,3305.1,0.319]
[1768342699835,0.28031557,3306.8,3305.1,0.319]
[1768342700032,0.283,3307.4,3305.1,6.37023706]
[1768342700341,0.28010739,3307.3,3305.1,6.37023706]
[1768342700659,3.177,3307.8,3305.1,6.37023706]
[1768342700660,0.28010739,3307.2,3305.1,6.37023706]
[1768342700856,0.28010739,3307.1,3305.2,0.319]
[1768342701058,3.177,3307.8,3305.2,0.319]
[1768342701059,0.28010739,3307.0,3305.2,0.319]
[1768342701371,6.04869196,3306.5,3303.1,17.52745812]
[1768342701530,6.04869196,3306.5,3303.0,0.001]
[1768342701531,3.45710739,3306.4,3303.2,3.0273674]
[1768342701736,3.177,3306.0,3303.2,6.3737348]
[1768342701936,0.28010739,3305.9,3303.2,12.4284696]
[1768342702154,0.283,3306.6,3303.2,12.4284696]
[1768342702368,0.27994389,3306.5,3303.3,2.858089]
[1768342702539,0.27994389,3306.4,3303.4,0.03027184]
[1768342702734,9.555539,3307.0,3303.4,0.03027184]
[1768342702958,0.279696,3306.9,3303.4,14.53027184]
[1768342703159,0.279696,3306.8,3303.7,5.609187]
[1768342703343,0.283,3307.3,3303.6,9.1841173]
[1768342703344,0.279696,3306.7,3303.6,9.1841173]
[1768342703578,9.272539,3308.8,3305.4,0.001]
[1768342703880,9.432539,3308.3,3305.5,0.319]
[1768342704085,0.27953237,3308.2,3305.5,0.319]
[1768342704382,0.27953237,3308.2,3305.6,0.03025169]
[1768342704383,0.381388,3306.8,3305.6,0.03025169]
[1768342704549,0.381388,3306.8,3305.5,0.319]
[1768342705178,0.381388,3306.8,3305.6,0.03025169]
[1768342705390,0.381388,3306.8,3305.6,6.0503388]
[1768342705691,3.02210291,3309.0,3305.6,12.13092929]
[1768342705897,6.6067649,3308.9,3305.6,9.0755082]
[1768342706047,0.27946016,3308.8,3305.6,9.0755082]
[1768342706254,0.27946016,3308.7,3305.6,9.0755082]
[1768342706487,0.27946016,3308.6,3305.6,9.0755082]
[1768342706661,0.27946016,3308.5,3305.6,6.0503388]
[1768342706866,0.27946016,3308.4,3305.6,3.0251694]
[1768342707070,9.55199916,3308.3,3305.4,0.001]
[1768342707261,9.272539,3308.1,3305.5,3.34425489]
[1768342707466,12.29569638,3307.8,3305.5,0.319]
[1768342707757,12.29569638,3307.8,3305.5,3.34425768]
[1768342707758,0.27946016,3307.7,3305.5,3.34425768]
[1768342708286,0.27946016,3307.7,3305.5,0.319]
[1768342708473,0.002,3309.3,3305.5,18.57887982]
[1768342708654,0.56294232,3309.2,3305.5,18.57887982]
[1768342708855,0.27994232,3309.1,3305.5,21.60414074]
[1768342709159,0.56394232,3309.0,3305.5,37.64149737]
[1768342709480,0.27994232,3308.9,3305.6,9.21436899]
[1768342709686,0.27994232,3308.8,3305.7,9.1841173]
[1768342709852,0.27994232,3308.7,3305.8,0.03024986]
[1768342710052,0.27994232,3308.6,3305.9,14.5]
[1768342710253,0.27994232,3308.5,3306.0,0.03024803]
[1768342710483,0.27994232,3308.4,3305.9,14.5]
[1768342710660,0.27994232,3308.3,3305.5,13.95738007]
[1768342710871,9.272539,3308.9,3305.5,15.44528436]
[1768342711190,9.272539,3308.9,3305.6,14.5]
[1768342711191,0.28029569,3308.8,3305.6,14.5]
[1768342711367,0.28029569,3308.7,3305.6,14.5]
[1768342711566,0.28029569,3308.6,3305.7,12.10031156]
[1768342711889,0.28029569,3308.5,3305.7,18.25935097]
[1768342712076,0.28029569,3308.4,3305.7,21.28442886]
[1768342712282,0.28029569,3308.3,3305.8,12.03136716]
[1768342712478,3.02379931,3309.3,3305.9,9.1841173]
[1768342712686,0.28095386,3309.2,3305.9,9.1841173]
[1768342712887,0.28095386,3309.1,3306.0,14.5]
[1768342713191,0.28095386,3309.0,3306.0,14.5]
[1768342713400,0.28095386,3308.9,3306.0,14.5]
[1768342713686,0.28095386,3308.8,3306.1,6.04942378]
[1768342713986,0.28095386,3308.8,3306.2,0.32]
[1768342713987,0.28095386,3308.7,3306.2,0.32]
[1768342714191,0.28095386,3308.6,3306.2,0.32]
[1768342714388,0.28095386,3308.5,3306.2,0.32]
[1768342714702,0.28095386,3308.4,3306.2,0.32]
[1768342714858,0.28095386,3308.3,3306.2,0.32]
[1768342715056,0.28095386,3308.2,3306.2,0.32]
[1768342715263,0.28102956,3308.1,3306.1,6.04942378]
[1768342715471,0.28102956,3308.0,3305.9,14.5]
[1768342715757,0.28102956,3308.0,3306.0,12.44944857]
[1768342715758,0.002,3308.0,3306.0,12.44944857]
[1768342716103,0.002,3308.0,3306.0,12.41920054]
[1768342716272,0.002,3308.0,3306.1,0.03024711]
[1768342716669,0.002,3308.0,3306.0,12.41920054]
[1768342716868,0.002,3308.0,3306.0,6.04959378]
[1768342717095,0.28104231,3307.9,3306.1,0.321]
[1768342717267,0.002,3308.0,3306.1,0.321]
[1768342717469,0.28105191,3307.9,3305.4,0.001]
[1768342717671,0.002,3308.0,3305.5,0.321]
[1768342717886,0.28104497,3307.9,3305.5,0.321]
[1768342718196,0.002,3308.0,3305.6,0.03025169]
[1768342718407,0.2810424,3307.9,3305.5,0.321]
[1768342718705,0.2810424,3307.9,3305.6,9.09333045]
[1768342718859,0.2810424,3307.9,3305.6,9.06307876]
[1768342719061,0.2810424,3307.9,3305.8,9.06307876]
[1768342719261,0.2810424,3307.9,3305.9,0.03024894]
[1768342719587,0.2810424,3307.9,3306.0,9.07441014]
[1768342719783,0.2810424,3307.9,3306.1,0.03024711]
[1768342720084,0.2810424,3307.9,3306.2,0.321]
[1768342720273,0.2810424,3307.9,3306.0,6.04960676]
[1768342720274,0.2810424,3307.9,3306.3,0.35124528]
[1768342720665,0.002,3308.0,3306.3,0.35124528]
[1768342721663,0.002,3308.0,3306.4,12.0977498]
[1768342721900,0.002,3308.0,3306.5,0.03024345]
[1768342722760,0.002,3308.0,3306.4,9.07331235]
[1768342723047,0.002,3308.0,3306.4,6.0488749]
[1768342723258,0.002,3308.0,3306.4,3.02443745]
[1768342723467,0.002,3308.0,3306.5,0.35224345]
[1768342723664,0.28120903,3307.9,3306.6,0.322]
[1768342723816,0.28120903,3307.8,3306.6,0.322]
[1768342724153,10.26024456,3307.7,3305.4,3.02633811]
[1768342724455,6.04614235,3307.9,3305.5,0.322]
[1768342724456,9.98045295,3307.4,3305.5,0.322]
[1768342724750,9.65170154,3307.2,3305.5,0.322]
[1768342724952,0.28120903,3307.1,3305.5,0.322]
[1768342725750,0.28120903,3307.1,3305.6,0.322]
[1768342726049,9.65814605,3306.7,3305.4,0.001]
[1768342726210,0.00099999,3305.2,3303.7,3.02690922]
[1768342726417,0.00099999,3305.2,3303.8,0.322]
[1768342726611,0.00099999,3305.2,3303.0,0.001]
[1768342727007,0.28130217,3305.1,3303.1,0.322]
[1768342727215,0.28130217,3305.0,3303.6,3.02700084]
[1768342727408,0.00099999,3305.2,3303.7,0.03026909]
[1768342727739,0.00099999,3305.2,3303.9,9.08017797]
[1768342727910,0.00099999,3305.2,3304.0,0.03026634]
[1768342728112,0.00099999,3305.2,3304.1,0.35226542]
[1768342728712,0.00099999,3305.2,3304.2,0.322]
[1768342728953,0.00099999,3305.2,3303.9,12.10690396]
[1768342729114,0.00099999,3305.2,3304.3,0.322]
[1768342729313,9.98380721,3307.1,3304.4,0.03026268]
[1768342729510,3.02261622,3308.4,3304.4,9.09334144]
[1768342729511,0.28088627,3307.0,3304.4,9.09334144]
[1768342729827,6.0452525,3308.4,3304.8,9.06307876]
[1768342730013,0.28081262,3307.9,3304.9,0.322]
[1768342730216,0.28081262,3307.8,3305.0,9.09333594]
[1768342730519,16.02885133,3308.5,3305.1,0.322]
[1768342730520,0.28081262,3307.7,3305.1,0.322]
[1768342730715,0.28081262,3307.6,3305.1,0.322]
[1768342730921,0.28081262,3307.5,3305.1,0.322]
[1768342731238,0.28081262,3307.4,3305.1,0.322]
[1768342731422,0.28081262,3307.3,3305.1,0.322]
[1768342731622,16.02885133,3308.5,3305.1,0.322]
[1768342731817,0.28087548,3307.9,3305.2,9.07660653]
[1768342732032,0.28087548,3307.8,3305.2,9.07660653]
[1768342732359,0.28087548,3307.7,3305.3,0.322]
[1768342732567,0.28087548,3307.6,3305.4,0.03025352]
[1768342732716,9.98380721,3308.5,3305.3,9.38507876]
[1768342732913,0.2809929,3307.9,3305.3,9.38507876]
[1768342733147,0.2809929,3307.8,3305.3,9.38507876]
[1768342733344,0.2809929,3307.7,3305.4,9.09333228]
[1768342733554,3.02217076,3308.9,3305.4,9.06307876]
[1768342733756,0.28103259,3307.9,3305.4,9.06307876]
[1768342733957,6.04398728,3309.1,3305.5,12.10104368]
[1768342734156,0.28103203,3307.9,3305.5,9.07578276]
[1768342734337,0.28103203,3307.8,3305.6,9.38607876]
[1768342734656,6.04398728,3309.1,3305.6,9.06307876]
[1768342734955,0.28106278,3307.9,3305.7,0.323]
[1768342735134,0.28106278,3307.8,3305.8,0.323]
[1768342735338,0.28106278,3307.7,3305.8,0.323]
[1768342735539,6.04398728,3309.1,3305.6,9.06307876]
[1768342735727,0.28107342,3307.9,3305.7,0.323]
[1768342735927,0.28107342,3307.8,3305.8,6.04997276]
[1768342736127,0.28107342,3307.7,3305.8,6.04997276]
[1768342736347,9.64838082,3308.6,3305.9,0.323]
[1768342736348,0.28107755,3307.6,3305.9,0.323]
[1768342736529,12.67081224,3308.6,3306.0,0.323]
[1768342736746,0.28108302,3307.9,3306.0,0.323]
[1768342737059,0.002,3309.3,3306.1,0.323]
[1768342737060,0.28108302,3307.8,3306.1,0.323]
[1768342737266,0.28108302,3307.7,3306.1,0.323]
[1768342737448,0.28108302,3307.6,3306.1,0.323]
[1768342737652,0.28108302,3307.5,3306.1,0.323]
[1768342737838,0.002,3308.0,3306.1,3.34771095]
[1768342738037,0.28110508,3307.9,3306.2,3.02462041]
[1768342738238,0.28110508,3307.8,3306.1,0.323]
[1768342738438,0.28110508,3307.7,3305.4,3.02534551]
[1768342738644,0.28110508,3307.6,3305.9,3.02483459]
[1768342738842,9.93280662,3307.5,3306.0,0.324]
[1768342739037,0.28110508,3307.4,3306.1,3.02469888]
[1768342739228,0.002,3308.0,3306.1,3.02469888]
[1768342739432,0.28113534,3307.9,3306.1,3.02469888]
[1768342739733,0.28113534,3307.8,3306.1,3.02469888]
[1768342740042,0.28313534,3307.7,3306.1,3.02469888]
[1768342740239,0.28113534,3307.6,3306.0,3.02472674]
[1768342740439,0.28113534,3307.6,3305.4,9.06307876]
[1768342740630,0.28113534,3307.6,3305.5,0.324]
[1768342740833,0.28113534,3307.6,3306.1,9.06307876]
[1768342740834,0.20616403,3307.6,3306.1,9.06307876]
[1768342741064,0.002,3308.0,3306.3,9.06307876]
[1768342741269,0.002,3308.0,3305.6,9.06307876]
[1768342741438,0.002,3308.0,3306.0,9.07440388]
[1768342741642,0.002,3308.0,3305.5,9.06307876]
[1768342741980,9.97394334,3307.8,3305.6,0.03025169]
[1768342742155,9.97394334,3307.8,3305.7,0.324]
[1768342742364,0.002,3308.0,3305.8,0.03024986]
[1768342742738,0.002,3308.0,3305.8,9.09332862]
[1768342742941,0.002,3308.3,3305.7,0.324]
[1768342742942,0.002,3308.3,3307.1,9.06307876]
[1768342743170,0.002,3308.3,3307.2,0.324]
[1768342743383,0.002,3308.3,3305.3,0.16]
[1768342743384,0.002,3308.3,3306.4,9.06307876]
[1768342743540,0.002,3308.3,3306.5,0.35424345]
[1768342743739,0.002,3308.3,3306.5,0.03024345]
[1768342743979,0.002,3308.3,3305.8,6.04997276]
[1768342744275,0.002,3308.3,3305.9,0.324]
[1768342744579,9.97920464,3308.3,3305.7,3.02506814]